fUSD/lending_fUSD_20250522
["ID","MTS","AMOUNT","RATE_DAILY","PERIOD"]
[361960424,1747909854137,-523.1,0.00032876,5]
[361960426,1747909854146,-420.0,0.00032876,5]
[361960427,1747909854158,-420.0,0.00032876,5]
[361960429,1747909854167,-457.39,0.00032876,5]
[361960431,1747909854177,-4884.69,0.00032876,5]
[361960433,1747909854187,-211.443275,0.00032876,7]
[361960435,1747909854196,-430.4,0.00032876,5]
[361960437,1747909854206,-420.0,0.00032876,5]
[361960439,1747909854215,-1346.04,0.00032876,5]
[361960441,1747909854225,-420.0,0.00032876,5]
[361960443,1747909854234,-816.42,0.00032876,5]
[361960445,1747909854243,-435.7513147,0.00032876,5]
[361960447,1747909854253,-151.0,0.00032876,7]
[361960449,1747909854262,-185.95423889,0.00032876,5]
[361960451,1747909854272,-884.71,0.00032876,5]
[361960453,1747909854282,-817.29,0.00032876,5]
[361960455,1747909854291,-420.0,0.00032876,5]
[361960457,1747909854301,-1690.01,0.00032876,5]
[361960459,1747909854310,-1722.64,0.00032876,5]
[361960461,1747909854320,-151.0,0.00032876,7]
[361960463,1747909854330,-1305.56,0.00032876,5]
[361960465,1747909854340,-466.97,0.00032876,5]
[361960467,1747909854349,-506.79,0.00032876,5]
[361960469,1747909854359,-420.0,0.00032876,5]
[361960471,1747909854369,-554.31,0.00032876,5]
[361960473,1747909854378,-420.0,0.00032876,5]
[361960476,1747909854388,-420.0,0.00032876,5]
[361960478,1747909854398,-420.0,0.00032876,5]
[361960480,1747909854407,-420.0,0.00032876,5]
[361960481,1747909854416,-420.0,0.00032876,5]
[361960484,1747909854426,-161.06936416,0.00032876,5]
[361960486,1747909854435,-420.0,0.00032876,5]
[361960487,1747909854445,-420.0,0.00032876,5]
[361960490,1747909854455,-420.0,0.00032876,5]
[361960491,1747909854464,-1134.22,0.00032876,5]
[361960493,1747909854474,-420.0,0.00032876,5]
[361960495,1747909854483,-2536.46,0.00032876,3]
[361960497,1747909854493,-477.6,0.00032876,5]
[361960499,1747909854503,-420.0,0.00032876,5]
[361960501,1747909854512,-453.03,0.00032876,5]
[361960503,1747909854521,-420.0,0.00032876,5]
[361960505,1747909854530,-1481.7,0.00032876,5]
[361960507,1747909854540,-420.75908688,0.00032876,5]
[361960509,1747909854549,-10515.79,0.00032876,2]
[361960511,1747909854558,-486.42,0.00032876,5]
[361960513,1747909854568,-420.0,0.00032876,5]
[361960515,1747909854578,-420.0,0.00032876,5]
[361960517,1747909854588,-516.67,0.00032876,5]
[361960519,1747909854598,-420.0,0.00032876,5]
[361960547,1747909854956,-437.88,0.00032876,5]
[361960550,1747909854983,-699.29,0.00032876,5]
[361960552,1747909854994,-420.0,0.00032876,5]
[361960554,1747909855004,-458.45,0.00032876,5]
[361960556,1747909855014,-1541.35,0.00032876,5]
[361960558,1747909855024,-1111.33,0.00032876,5]
[361960560,1747909855034,-420.0,0.00032876,5]
[361960562,1747909855044,-420.0,0.00032876,5]
[361960564,1747909855054,-1424.95,0.00032876,5]
[361960566,1747909855065,-706.93,0.00032876,5]
[361960568,1747909855074,-420.0,0.00032876,5]
[361960570,1747909855084,-920.31,0.00032876,5]
[361960572,1747909855094,-546.78,0.00032876,5]
[361960574,1747909855103,-3088.43,0.00032876,5]
[361960576,1747909855113,-420.0,0.00032876,5]
[361960578,1747909855123,-420.0,0.00032876,5]
[361960580,1747909855132,-420.0,0.00032876,5]
[361960582,1747909855141,-2387.68,0.00032876,5]
[361960584,1747909855151,-420.0,0.00032876,5]
[361960586,1747909855161,-1350.38,0.00032876,5]
[361960588,1747909855171,-829.33,0.00032876,5]
[361960589,1747909855180,-420.0,0.00032876,5]
[361960592,1747909855190,-420.0,0.00032876,5]
[361960594,1747909855199,-420.0,0.00032876,5]
[361960595,1747909855209,-2584.37,0.00032876,5]
[361960596,1747909855219,-420.0,0.00032876,5]
[361960597,1747909855228,-420.0,0.00032876,5]
[361960598,1747909855238,-497.63,0.00032876,5]
[361960599,1747909855248,-500.0,0.00032876,5]
[361960600,1747909855257,-500.0,0.00032876,5]
[361960601,1747909855267,-500.0,0.00032876,5]
[361960603,1747909855276,-420.0,0.00032876,5]
[361960605,1747909855285,-675.81,0.00032876,5]
[361960607,1747909855295,-1328.1,0.00032876,5]
[361960609,1747909855305,-536.67,0.00032876,5]
[361960611,1747909855314,-420.0,0.00032876,5]
[361960613,1747909855324,-420.0,0.00032876,5]
[361960615,1747909855334,-613.9,0.00032876,5]
[361960617,1747909855344,-420.0,0.00032876,5]
[361960619,1747909855353,-420.0,0.00032876,5]
[361960621,1747909855363,-420.0,0.00032876,5]
[361960623,1747909855372,-1021.65,0.00032876,5]
[361960625,1747909855381,-420.0,0.00032876,5]
[361960627,1747909855391,-420.0,0.00032876,5]
[361960629,1747909855400,-707.09,0.00032876,5]
[361960631,1747909855410,-420.0,0.00032876,5]
[361960633,1747909855419,-420.0,0.00032876,5]
[361960634,1747909855429,-463.66,0.00032876,5]
[361960635,1747909855438,-886.14,0.00032876,5]
[361960637,1747909855448,-420.0,0.00032876,5]
[361960639,1747909855458,-1087.99,0.00032876,5]
[361960641,1747909855469,-420.0,0.00032876,5]
[361960643,1747909855478,-703.71,0.00032876,5]
[361960646,1747909855488,-420.0,0.00032876,5]
[361960648,1747909855498,-151.0,0.00032876,7]
[361960649,1747909855507,-792.34,0.00032876,5]
[361960651,1747909855517,-2540.74,0.00032876,5]
[361960653,1747909855526,-610.78,0.00032876,5]
[361960656,1747909855536,-420.0,0.00032876,5]
[361960658,1747909855545,-619.61,0.00032876,5]
[361960660,1747909855555,-420.0,0.00032876,5]
[361960662,1747909855565,-738.94,0.00032876,5]
[361960664,1747909855574,-702.12,0.00032876,5]
[361960666,1747909855585,-1327.34,0.00032876,5]
[361960668,1747909855595,-728.27,0.00032876,5]
[361960670,1747909855605,-420.0,0.00032876,5]
[361960672,1747909855615,-1284.0,0.00032876,5]
[361960674,1747909855624,-420.0,0.00032876,5]
[361960676,1747909855634,-420.0,0.00032876,5]
[361960678,1747909855644,-420.0,0.00032876,5]
[361960680,1747909855654,-906.22,0.00032877,2]
[361960682,1747909855663,-290.11,0.00032877,2]
[361960684,1747909855673,-200.0,0.00032878,10]
[361960686,1747909855683,-283.5747147,0.00032878,2]
[361960688,1747909855693,-16215.95748949,0.00032888,2]
[361960690,1747909855706,-243.798934,0.00033,7]
[361960692,1747909855716,-151.0,0.00033,7]
[361960694,1747909855725,-700.0,0.00033,120]
[361960696,1747909855735,-10335.17848756,0.00033,5]
[361960698,1747909855745,-156.69600417,0.0003305,2]
[361960700,1747909855755,-1785.80186169,0.0003305,2]
[361960702,1747909855765,-283.5747147,0.0003313,2]
[361960704,1747909855776,-150.0,0.00033134,2]
[361960706,1747909855786,-500.0,0.00033134,2]
[361960708,1747909855797,-500.0,0.00033139,5]
[361960710,1747909855807,-283.5747147,0.0003314,2]
[361960712,1747909855817,-500.0,0.0003314,5]
[361960714,1747909855827,-151.0,0.0003314,7]
[361960716,1747909855836,-151.0,0.0003314,7]
[361960718,1747909855844,-151.0,0.0003314,7]
[361960720,1747909855854,-151.0,0.0003314,7]
[361960722,1747909855864,-151.0,0.0003314,7]
[361960724,1747909855875,-1237.24425803,0.00033141,2]
[361960726,1747909855885,-556.1881876,0.00033149,5]
[361960728,1747909855895,-420.0,0.00033149,5]
[361960730,1747909855905,-420.0,0.00033149,5]
[361960732,1747909855916,-420.0,0.00033149,5]
[361960734,1747909855926,-500.0,0.00033149,5]
[361960736,1747909855935,-500.0,0.00033149,5]
[361960738,1747909855945,-500.0,0.00033149,5]
[361960740,1747909855955,-150.0,0.00033149,2]
[361960742,1747909855965,-2601.07471,0.00033149,2]
[361960744,1747909855975,-253.18352916,0.00033149,5]
[361960746,1747909855985,-154.18522,0.0003315,7]
[361960748,1747909855995,-151.0,0.0003315,7]
[361960750,1747909856005,-151.0,0.0003315,7]
[361960752,1747909856015,-151.0,0.0003315,7]
[361960754,1747909856025,-156.631504,0.0003315,7]
[361960756,1747909856035,-151.0,0.0003315,7]
[361960758,1747909856045,-151.0,0.0003315,7]
[361960760,1747909856058,-173.128583,0.0003315,7]
[361960762,1747909856069,-265.100721,0.0003315,7]
[361960764,1747909856081,-265.100721,0.0003315,7]
[361960766,1747909856091,-265.100721,0.0003315,7]
[361960768,1747909856101,-265.100721,0.0003315,7]
[361960770,1747909856111,-265.100721,0.0003315,7]
[361960772,1747909856121,-265.100721,0.0003315,7]
[361960774,1747909856131,-265.100721,0.0003315,7]
[361960776,1747909856141,-265.100721,0.0003315,7]
[361960778,1747909856152,-246.319255,0.0003315,7]
[361960780,1747909856162,-246.319255,0.0003315,7]
[361960781,1747909856172,-246.319255,0.0003315,7]
[361960782,1747909856182,-246.319255,0.0003315,7]
[361960783,1747909856191,-246.319255,0.0003315,7]
[361960784,1747909856201,-246.319255,0.0003315,7]
[361960785,1747909856211,-246.319255,0.0003315,7]
[361960786,1747909856221,-246.319255,0.0003315,7]
[361960787,1747909856231,-151.0,0.0003315,7]
[361960788,1747909856241,-151.0,0.0003315,7]
[361960789,1747909856250,-151.0,0.0003315,7]
[361960790,1747909856260,-151.0,0.0003315,7]
[361960792,1747909856270,-151.0,0.0003315,7]
[361960794,1747909856280,-151.0,0.0003315,7]
[361960796,1747909856289,-151.0,0.0003315,7]
[361960798,1747909856299,-277.613135,0.0003315,7]
[361960800,1747909856312,-151.0,0.0003315,7]
[361960802,1747909856322,-151.0,0.0003315,7]
[361960804,1747909856332,-151.0,0.0003315,7]
[361960806,1747909856342,-151.0,0.0003315,7]
[361960808,1747909856352,-153.641413,0.0003315,7]
[361960810,1747909856361,-200.0,0.0003315,2]
[361960812,1747909856371,-604.45,0.0003315,5]
[361960814,1747909856381,-420.0,0.0003315,5]
[361960816,1747909856390,-420.0,0.0003315,5]
[361960818,1747909856400,-549.97,0.0003315,5]
[361960820,1747909856410,-762.17,0.0003315,5]
[361960822,1747909856420,-1269.61,0.0003315,5]
[361960824,1747909856429,-489.14,0.0003315,5]
[361960826,1747909856439,-1007.4,0.0003315,5]
[361960828,1747909856449,-420.0,0.0003315,5]
[361960830,1747909856460,-618.54,0.0003315,5]
[361960832,1747909856471,-420.0,0.0003315,5]
[361960834,1747909856483,-420.0,0.0003315,5]
[361960836,1747909856493,-420.0,0.0003315,5]
[361960838,1747909856504,-420.0,0.0003315,5]
[361960839,1747909856514,-420.0,0.0003315,5]
[361960842,1747909856524,-1111.99,0.0003315,5]
[361960844,1747909856534,-611.86,0.0003315,5]
[361960846,1747909856544,-420.0,0.0003315,5]
[361960847,1747909856553,-420.0,0.0003315,5]
[361960850,1747909856564,-499.36,0.0003315,5]
[361960852,1747909856574,-420.0,0.0003315,5]
[361960853,1747909856584,-420.0,0.0003315,5]
[361960854,1747909856594,-420.0,0.0003315,5]
[361960855,1747909856604,-433.38,0.0003315,5]
[361960856,1747909856614,-490.6177832,0.0003315,5]
[361960857,1747909856624,-420.0,0.0003315,5]
[361960858,1747909856634,-420.0,0.0003315,5]
[361960859,1747909856644,-420.0,0.0003315,5]
[361960860,1747909856654,-420.0,0.0003315,5]
[361960861,1747909856664,-643.71,0.0003315,5]
[361960862,1747909856675,-420.0,0.0003315,5]
[361960863,1747909856685,-420.0,0.0003315,5]
[361960864,1747909856695,-420.0,0.0003315,5]
[361960865,1747909856709,-420.0,0.0003315,5]
[361960866,1747909856719,-541.47,0.0003315,5]
[361960867,1747909856729,-1118.56,0.0003315,5]
[361960868,1747909856738,-420.0,0.0003315,5]
[361960869,1747909856750,-420.0,0.0003315,5]
[361960870,1747909856760,-420.0,0.0003315,5]
[361960871,1747909856771,-753.63,0.0003315,5]
[361960872,1747909856782,-470.82,0.0003315,5]
[361960873,1747909856792,-420.0,0.0003315,5]
[361960874,1747909856803,-740.81,0.0003315,5]
[361960875,1747909856814,-420.0,0.0003315,5]
[361960876,1747909856824,-1238.09,0.0003315,5]
[361960877,1747909856834,-321.69187334,0.0003315,5]
[361960878,1747909856844,-420.0,0.0003315,5]
[361960879,1747909856854,-420.0,0.0003315,5]
[361960880,1747909856863,-420.0,0.0003315,5]
[361960881,1747909856873,-420.0,0.0003315,5]
[361960882,1747909856883,-420.0,0.0003315,5]
[361960883,1747909856893,-420.0,0.0003315,5]
[361960884,1747909856903,-441.90508896,0.0003315,5]
[361960885,1747909856913,-853.96,0.0003315,5]
[361960886,1747909856923,-420.0,0.0003315,5]
[361960887,1747909856932,-1031.41,0.0003315,5]
[361960888,1747909856942,-447.71263915,0.0003315,5]
[361960889,1747909856952,-420.0,0.0003315,5]
[361960890,1747909856961,-1207.72,0.0003315,5]
[361960891,1747909856971,-420.0,0.0003315,5]
[361960892,1747909856981,-420.0,0.0003315,5]
[361960893,1747909856991,-1093.12,0.0003315,5]
[361960894,1747909857000,-151.0,0.0003315,7]
[361960895,1747909857010,-151.0,0.0003315,7]
[361960896,1747909857020,-420.0,0.0003315,5]
[361960897,1747909857030,-420.0,0.0003315,5]
[361960898,1747909857040,-420.0,0.0003315,5]
[361960899,1747909857050,-420.0,0.0003315,5]
[361960900,1747909857062,-420.0,0.0003315,5]
[361960901,1747909857072,-1404.26,0.0003315,5]
[361960902,1747909857082,-420.0,0.0003315,5]
[361960903,1747909857092,-565.0,0.0003315,5]
[361960904,1747909857101,-1034.54,0.0003315,5]
[361960905,1747909857111,-461.34,0.0003315,5]
[361960906,1747909857120,-420.0,0.0003315,5]
[361960907,1747909857130,-420.0,0.0003315,5]
[361960908,1747909857139,-488.02,0.0003315,5]
[361960909,1747909857148,-423.96029506,0.0003315,5]
[361960910,1747909857158,-674.27,0.0003315,5]
[361960911,1747909857168,-939.79,0.0003315,5]
[361960912,1747909857178,-420.0,0.0003315,5]
[361960913,1747909857190,-385.65327879,0.0003315,5]
[361960914,1747909857199,-457.49,0.0003315,5]
[361960915,1747909857208,-1253.18,0.0003315,5]
[361960916,1747909857218,-420.0,0.0003315,5]
[361960917,1747909857227,-415.95018431,0.0003315,5]
[361960918,1747909857236,-810.22,0.0003315,5]
[361960919,1747909857246,-420.0,0.0003315,5]
[361960920,1747909857256,-1007.89,0.0003315,5]
[361960921,1747909857265,-924.14,0.0003315,5]
[361960922,1747909857274,-420.0,0.0003315,5]
[361960923,1747909857284,-420.0,0.0003315,5]
[361960924,1747909857293,-1055.44,0.0003315,5]
[361960925,1747909857304,-420.0,0.0003315,5]
[361960926,1747909857313,-420.0,0.0003315,5]
[361960927,1747909857323,-1132.27,0.0003315,5]
[361960928,1747909857332,-420.0,0.0003315,5]
[361960929,1747909857342,-420.0,0.0003315,5]
[361960930,1747909857351,-445.53,0.0003315,5]
[361960931,1747909857360,-420.0,0.0003315,5]
[361960932,1747909857465,-420.0,0.0003315,5]
[361960933,1747909857475,-420.0,0.0003315,5]
[361960934,1747909857485,-445.33,0.0003315,5]
[361960935,1747909857494,-420.0,0.0003315,5]
[361960936,1747909857503,-488.83,0.0003315,5]
[361960937,1747909857512,-479.08,0.0003315,5]
[361960938,1747909857522,-420.0,0.0003315,5]
[361960939,1747909857531,-1213.63,0.0003315,5]
[361960940,1747909857542,-420.0,0.0003315,5]
[361960941,1747909857553,-420.0,0.0003315,5]
[361960942,1747909857563,-420.0,0.0003315,5]
[361960943,1747909857573,-464.81,0.0003315,5]
[361960944,1747909857582,-651.85,0.0003315,5]
[361960945,1747909857591,-420.0,0.0003315,5]
[361960946,1747909857602,-420.0,0.0003315,5]
[361960947,1747909857611,-420.0,0.0003315,5]
[361960948,1747909857620,-420.0,0.0003315,5]
[361960949,1747909857630,-420.0,0.0003315,5]
[361960950,1747909857639,-420.0,0.0003315,5]
[361960951,1747909857649,-420.0,0.0003315,5]
[361960952,1747909857659,-420.0,0.0003315,5]
[361960953,1747909857669,-511.59,0.0003315,5]
[361960954,1747909857678,-420.0,0.0003315,5]
[361960955,1747909857688,-443.83,0.0003315,5]
[361960956,1747909857698,-420.0,0.0003315,5]
[361960957,1747909857710,-420.0,0.0003315,5]
[361960958,1747909857720,-151.0,0.0003315,7]
[361960959,1747909857729,-151.0,0.0003315,7]
[361960960,1747909857739,-443.66,0.0003315,5]
[361960961,1747909857748,-420.0,0.0003315,5]
[361960962,1747909857757,-151.0,0.0003315,7]
[361960963,1747909857766,-420.0,0.0003315,5]
[361960964,1747909857777,-528.37,0.0003315,5]
[361960965,1747909857786,-552.98,0.0003315,5]
[361960966,1747909857795,-828.07,0.0003315,5]
[361960967,1747909857808,-572.51,0.0003315,5]
[361960968,1747909857817,-722.07,0.0003315,5]
[361960969,1747909857826,-429.25,0.0003315,5]
[361960970,1747909857835,-420.0,0.0003315,5]
[361960971,1747909857845,-1154.25,0.0003315,5]
[361960972,1747909857853,-420.0,0.0003315,5]
[361960973,1747909857862,-1200.25,0.0003315,5]
[361960974,1747909857873,-420.0,0.0003315,5]
[361960975,1747909857882,-420.0,0.0003315,5]
[361960976,1747909857892,-446.05,0.0003315,5]
[361960977,1747909857901,-420.0,0.0003315,5]
[361960978,1747909857911,-420.0,0.0003315,5]
[361960979,1747909857920,-420.0,0.0003315,5]
[361960980,1747909857928,-420.0,0.0003315,5]
[361960981,1747909857938,-420.0,0.0003315,2]
[361960982,1747909857947,-432.53,0.0003315,5]
[361960983,1747909857956,-420.0,0.0003315,5]
[361960984,1747909857966,-562.92,0.0003315,5]
[361960985,1747909857975,-420.0,0.0003315,5]
[361960986,1747909857984,-420.0,0.0003315,5]
[361960987,1747909857993,-420.0,0.0003315,5]
[361960988,1747909858003,-825.4,0.0003315,5]
[361960989,1747909858017,-420.0,0.0003315,5]
[361960990,1747909858026,-151.0,0.0003315,7]
[361960991,1747909858036,-695.8,0.0003315,5]
[361960992,1747909858045,-946.97,0.0003315,5]
[361960993,1747909858056,-186.69928,0.0003315,7]
[361960994,1747909858065,-420.0,0.0003315,5]
[361960995,1747909858074,-420.0,0.0003315,5]
[361960996,1747909858084,-420.0,0.0003315,5]
[361960997,1747909858093,-572.74,0.0003315,5]
[361960998,1747909858103,-424.835292,0.0003315,7]
[361960999,1747909858112,-424.835292,0.0003315,7]
[361961000,1747909858121,-424.835292,0.0003315,7]
[361961001,1747909858130,-514.26,0.0003315,5]
[361961002,1747909858139,-890.57,0.0003315,5]
[361961003,1747909858149,-424.835292,0.0003315,7]
[361961004,1747909858158,-424.835292,0.0003315,7]
[361961005,1747909858168,-976.4,0.0003315,5]
[361961006,1747909858177,-424.835292,0.0003315,7]
[361961007,1747909858186,-420.0,0.0003315,5]
[361961008,1747909858196,-1102.92,0.0003315,5]
[361961009,1747909858205,-1024.14,0.0003315,5]
[361961010,1747909858215,-420.0,0.0003315,5]
[361961011,1747909858223,-420.0,0.0003315,5]
[361961012,1747909858233,-155.21829871,0.0003315,5]
[361961013,1747909858242,-420.0,0.0003315,5]
[361961014,1747909858252,-420.0,0.0003315,5]
[361961015,1747909858261,-881.15,0.0003315,5]
[361961016,1747909858270,-860.62,0.0003315,5]
[361961017,1747909858280,-420.0,0.0003315,5]
[361961018,1747909858289,-1237.36,0.0003315,5]
[361961019,1747909858298,-606.36,0.0003315,5]
[361961020,1747909858308,-420.0,0.0003315,5]
[361961021,1747909858317,-420.0,0.0003315,5]
[361961022,1747909858326,-420.0,0.0003315,5]
[361961023,1747909858336,-463.36,0.0003315,5]
[361961024,1747909858345,-703.56,0.0003315,5]
[361961025,1747909858354,-420.0,0.0003315,5]
[361961026,1747909858363,-420.0,0.0003315,5]
[361961027,1747909858373,-420.0,0.0003315,5]
[361961028,1747909858382,-420.0,0.0003315,5]
[361961029,1747909858391,-420.0,0.0003315,5]
[361961030,1747909858400,-420.0,0.0003315,5]
[361961031,1747909858410,-151.0,0.0003315,7]
[361961032,1747909858419,-151.0,0.0003315,7]
[361961033,1747909858428,-254.173113,0.0003315,7]
[361961034,1747909858438,-762.43,0.0003315,5]
[361961035,1747909858447,-500.0,0.0003315,30]
[361961036,1747909858455,-420.0,0.0003315,5]
[361961037,1747909858465,-420.0,0.0003315,5]
[361961038,1747909858474,-259.64307803,0.0003315,5]
[361961039,1747909858483,-1023.16,0.0003315,5]
[361961040,1747909858493,-606.34,0.0003315,5]
[361961041,1747909858502,-420.0,0.0003315,5]
[361961042,1747909858511,-420.0,0.0003315,5]
[361961043,1747909858519,-420.0,0.0003315,5]
[361961044,1747909858528,-420.0,0.0003315,5]
[361961045,1747909858538,-151.0,0.0003315,7]
[361961046,1747909858547,-535.58,0.0003315,5]
[361961047,1747909858557,-151.0,0.0003315,7]
[361961048,1747909858566,-420.0,0.0003315,5]
[361961049,1747909858576,-420.0,0.0003315,5]
[361961050,1747909858585,-151.0,0.0003315,7]
[361961051,1747909858594,-420.0,0.0003315,5]
[361961052,1747909858603,-500.0,0.0003315,5]
[361961053,1747909858612,-498.95,0.0003315,5]
[361961054,1747909858621,-420.0,0.0003315,5]
[361961055,1747909858630,-420.0,0.0003315,5]
[361961056,1747909858640,-542.84,0.0003315,5]
[361961057,1747909858650,-420.0,0.0003315,5]
[361961058,1747909858659,-420.0,0.0003315,5]
[361961059,1747909858668,-420.0,0.0003315,5]
[361961060,1747909858677,-420.0,0.0003315,5]
[361961061,1747909858686,-517.88,0.0003315,5]
[361961062,1747909858697,-439.6,0.0003315,5]
[361961063,1747909858707,-420.0,0.0003315,5]
[361961064,1747909858717,-200.0,0.0003315,2]
[361961065,1747909858726,-420.0,0.0003315,5]
[361961066,1747909858737,-420.0,0.0003315,5]
[361961067,1747909858747,-472.02,0.0003315,5]
[361961068,1747909858756,-760.26,0.0003315,5]
[361961069,1747909858766,-1092.34,0.0003315,5]
[361961070,1747909858775,-794.11,0.0003315,5]
[361961071,1747909858786,-780.83,0.0003315,5]
[361961072,1747909858795,-420.0,0.0003315,5]
[361961073,1747909858804,-420.0,0.0003315,5]
[361961074,1747909858814,-420.0,0.0003315,5]
[361961075,1747909858823,-420.0,0.0003315,5]
[361961076,1747909858832,-420.0,0.0003315,5]
[361961077,1747909858841,-668.72,0.0003315,5]
[361961078,1747909858851,-474.42,0.0003315,5]
[361961079,1747909858860,-420.0,0.0003315,5]
[361961080,1747909858869,-534.83,0.0003315,5]
[361961081,1747909858878,-1041.82,0.0003315,5]
[361961082,1747909858887,-420.0,0.0003315,5]
[361961083,1747909858897,-420.0,0.0003315,5]
[361961084,1747909858906,-420.0,0.0003315,5]
[361961085,1747909858915,-420.0,0.0003315,5]
[361961086,1747909858925,-420.0,0.0003315,5]
[361961087,1747909858934,-702.26,0.0003315,5]
[361961088,1747909858944,-420.0,0.0003315,5]
[361961089,1747909858953,-1222.88,0.0003315,5]
[361961090,1747909858963,-420.0,0.0003315,5]
[361961091,1747909858972,-420.0,0.0003315,5]
[361961092,1747909858981,-725.44,0.0003315,5]
[361961093,1747909858990,-420.0,0.0003315,5]
[361961094,1747909858999,-420.0,0.0003315,5]
[361961095,1747909859009,-438.82,0.0003315,5]
[361961096,1747909859018,-700.74,0.0003315,5]
[361961097,1747909859027,-420.0,0.0003315,5]
[361961098,1747909859036,-420.0,0.0003315,5]
[361961099,1747909859046,-420.0,0.0003315,5]
[361961100,1747909859056,-420.0,0.0003315,5]
[361961101,1747909859064,-523.63,0.0003315,5]
[361961102,1747909859074,-420.0,0.0003315,5]
[361961103,1747909859083,-447.79,0.0003315,5]
[361961104,1747909859092,-572.38,0.0003315,5]
[361961105,1747909859101,-420.0,0.0003315,5]
[361961106,1747909859110,-420.0,0.0003315,5]
[361961107,1747909859119,-889.51,0.0003315,5]
[361961108,1747909859128,-151.0,0.0003315,7]
[361961109,1747909859137,-420.0,0.0003315,5]
[361961110,1747909859147,-151.0,0.0003315,7]
[361961111,1747909859156,-420.0,0.0003315,5]
[361961112,1747909859166,-151.0,0.0003315,7]
[361961113,1747909859176,-420.0,0.0003315,5]
[361961114,1747909859185,-420.0,0.0003315,5]
[361961115,1747909859194,-420.0,0.0003315,5]
[361961116,1747909859204,-1473.64,0.0003315,5]
[361961117,1747909859214,-637.08,0.0003315,5]
[361961118,1747909859223,-1051.45,0.0003315,5]
[361961119,1747909859232,-420.0,0.0003315,5]
[361961120,1747909859241,-439.99,0.0003315,5]
[361961121,1747909859250,-817.39,0.0003315,5]
[361961122,1747909859260,-1378.67,0.0003315,5]
[361961123,1747909859268,-420.0,0.0003315,5]
[361961124,1747909859278,-420.0,0.0003315,5]
[361961125,1747909859287,-420.0,0.0003315,5]
[361961126,1747909859296,-1488.84,0.0003315,5]
[361961127,1747909859305,-633.21,0.0003315,5]
[361961128,1747909859314,-539.09,0.0003315,5]
[361961129,1747909859323,-420.0,0.0003315,5]
[361961130,1747909859332,-151.0,0.0003315,7]
[361961131,1747909859342,-290.241172,0.0003315,7]
[361961132,1747909859351,-552.8,0.0003315,5]
[361961133,1747909859360,-589.3,0.0003315,5]
[361961134,1747909859370,-1121.96,0.0003315,5]
[361961135,1747909859379,-420.0,0.0003315,5]
[361961136,1747909859389,-1529.355431,0.0003315,7]
[361961137,1747909859398,-420.0,0.0003315,5]
[361961138,1747909859410,-151.0,0.0003315,7]
[361961139,1747909859419,-420.0,0.0003315,5]
[361961140,1747909859430,-151.0,0.0003315,7]
[361961141,1747909859439,-151.0,0.0003315,7]